bitfinex/quotes_SOLUSD_20250920
["timestamp","ask_amount","ask_price","bid_price","bid_amount"]
[1758341706846,0.16000001,238.64,238.63,80.87050508]
[1758341707851,0.82000001,238.64,238.63,80.87050508]
[1758341709132,0.16000001,238.64,238.63,80.87050508]
[1758341710331,0.16000001,238.64,238.63,81.59050508]
[1758341710836,0.16000001,238.64,238.63,80.87050508]
[1758341711651,0.16000001,238.64,238.63,81.59050508]
[1758341712568,0.16000001,238.64,238.63,80.87050508]
[1758341721955,0.16000001,238.64,238.63,81.59050508]
[1758341722262,0.16000001,238.64,238.63,80.87050508]
[1758341726265,0.81000001,238.64,238.63,80.87050508]
[1758341726649,0.16000001,238.64,238.63,80.87050508]
[1758341727259,0.16000001,238.64,238.63,82.8304683]
[1758341728558,1e-08,238.64,238.63,82.8304683]
[1758341729055,1e-08,238.64,238.63,84.50969417]
[1758341735973,1e-08,238.64,238.63,85.21779118]
[1758341738179,1e-08,238.64,238.63,83.24973095]
[1758341738352,1e-08,238.64,238.63,85.21779118]
[1758341741073,1e-08,238.64,238.63,83.24973095]
[1758341741256,1e-08,238.64,238.63,117.13779118]
[1758341748681,1e-08,238.64,238.63,116.43779118]
[1758341749056,1e-08,238.64,238.63,117.13779118]
[1758341749878,1e-08,238.64,238.63,85.21779118]
[1758341750069,1e-08,238.64,238.63,116.41779118]
[1758341750579,1e-08,238.64,238.63,117.11779118]
[1758341751583,1e-08,238.64,238.63,116.41779118]
[1758341752478,1e-08,238.64,238.63,117.11779118]
[1758341758187,1e-08,238.64,238.63,116.41779118]
[1758341759686,1e-08,238.64,238.63,117.13779118]
[1758341761286,1e-08,238.64,238.63,82.54973095]
[1758341761477,1e-08,238.64,238.63,114.44973095]
[1758341761678,0.67000001,238.64,238.63,114.44973095]
[1758341762075,0.67000001,238.64,238.63,112.77050508]
[1758341765084,1e-08,238.64,238.63,112.77050508]
[1758341768011,0.67000001,238.64,238.63,17.78618194]
[1758341768195,0.67000001,238.64,238.63,49.68618194]
[1758341768990,0.67000001,238.64,238.63,49.97050508]
[1758341772096,0.67000001,238.64,238.63,112.77050508]
[1758341774007,2.63806024,238.64,238.63,76.39559401]
[1758341774187,2.63806024,238.64,238.63,108.29559401]
[1758341774383,2.63806024,238.64,238.63,112.48618194]
[1758341774696,0.67000001,238.64,238.63,112.48618194]
[1758341776179,2.63806024,238.64,238.63,112.48618194]
[1758341776697,2.63806024,238.64,238.63,108.29559401]
[1758341777513,2.63806024,238.64,238.63,112.48618194]
[1758341778084,2.63806024,238.64,238.63,49.68618194]
[1758341788527,2.63806024,238.64,238.6,2.47338778]
[1758341788724,1.96806023,238.61,238.6,15.78465865]
[1758341788906,2.63806023,238.61,238.6,51.87577348]
[1758341789411,1.96806023,238.61,238.6,51.87577348]
[1758341790818,2.63806023,238.61,238.6,45.49559401]
[1758341791020,15.23754365,238.61,238.6,45.49559401]
[1758341794129,14.56754365,238.61,238.6,49.68670884]
[1758341797812,13.86004031,238.61,238.6,49.68670884]
[1758341799831,13.86004031,238.61,238.6,50.38670884]
[1758341801612,13.86004031,238.61,238.6,49.68670884]
[1758341806215,13.86004031,238.61,238.6,50.38670884]
[1758341806422,12.59948342,238.61,238.6,49.68670884]
[1758341806625,12.59948342,238.61,238.6,50.67103198]
[1758341807213,1.2605569,238.64,238.61,13.59559401]
[1758341807407,1.2605569,238.64,238.62,31.92]
[1758341807622,1.2605569,238.64,238.62,32.62]
[1758341808611,1.2605569,238.64,238.63,4.19058793]
[1758341809127,2.94034693,238.64,238.63,4.19058793]
[1758341810033,1.67979004,238.64,238.63,18.77050508]
[1758341810239,1e-08,238.64,238.63,18.77050508]
[1758341811746,1e-08,238.64,238.63,21.81056987]
[1758341816641,1e-08,238.64,238.63,84.61056987]
[1758341823923,1e-08,238.64,238.63,81.57050508]
[1758341826349,1e-08,238.64,238.63,80.87050508]
[1758341826957,1e-08,238.64,238.63,81.54050508]
[1758341827831,1e-08,238.64,238.63,83.21987196]
[1758341828550,1e-08,238.64,238.63,80.87050508]
[1758341829230,1e-08,238.64,238.63,81.54050508]
[1758341830447,1.9305569,238.64,238.61,13.59559401]
[1758341830659,1.26055689,238.62,238.61,13.59559401]
[1758341830840,1.93055689,238.62,238.61,45.49559401]
[1758341831367,14.52951118,238.62,238.61,45.49559401]
[1758341834657,14.52951118,238.62,238.6,2.18952384]
[1758341834838,1.93055689,238.61,238.6,2.18952384]
[1758341835038,1.93055689,238.61,238.6,34.10952384]
[1758341835440,14.52951118,238.61,238.6,34.10952384]
[1758341836760,14.52951118,238.61,238.6,31.92]
[1758341836761,18.72045036,238.61,238.6,31.92]
[1758341840443,18.86261193,238.61,238.6,31.92]
[1758341841343,31.2,238.58,238.51,4.1926906]
[1758341841551,0.67,238.57,238.52,49.72798253]
[1758341841856,1.26055689,238.53,238.52,50.39798253]
[1758341847885,14.53427498,238.56,238.52,50.39798253]
[1758341848563,12.60371809,238.56,238.53,0.72]
[1758341848762,1.26055689,238.59,238.54,31.94]
[1758341848973,12.60318861,238.57,238.55,0.72]
[1758341849181,12.60318861,238.57,238.56,31.94]
[1758341849364,1.26055689,238.6,238.56,32.66]
[1758341849682,12.60212976,238.59,238.57,0.72]
[1758341849880,1.26055689,238.61,238.58,31.94]
[1758341850177,1.68021339,238.59,238.58,36.13146617]
[1758341852960,2.94077028,238.59,238.58,36.13146617]
[1758341854188,1.68021339,238.59,238.58,36.13146617]
[1758341854370,2.94077028,238.59,238.58,36.13146617]
[1758341857294,2.94077028,238.59,238.58,36.85146617]
[1758341857472,1.68021339,238.59,238.58,36.85146617]
[1758341857868,2.94077028,238.59,238.58,36.13146617]
[1758341859893,3.65018969,238.59,238.58,36.13146617]
[1758341863599,1.68021339,238.59,238.58,36.13146617]
[1758341863892,3.65018969,238.59,238.58,36.13146617]
[1758341872198,3.65018969,238.59,238.58,31.94]
[1758341872382,4.31018969,238.59,238.58,31.92]
[1758341873786,35.51018969,238.59,238.58,31.92]
[1758341874398,3.65018969,238.59,238.58,36.11146617]
[1758341874583,3.65018969,238.59,238.58,4.19146617]
[1758341874785,3.65018969,238.59,238.58,36.11146617]
[1758341876101,1.68021339,238.59,238.58,36.79146617]
[1758341876402,1.9699763,238.6,238.58,36.79146617]
[1758341876604,5.62016599,238.6,238.58,36.11146617]
[1758341876910,5.62016599,238.6,238.59,0.68]
[1758341877392,1e-08,238.64,238.59,28.94511074]
[1758341877598,2.82731804,238.63,238.6,31.94]
[1758341877806,12.60001261,238.64,238.61,0.68]
[1758341878011,1e-08,238.64,238.62,31.94]
[1758341878186,1e-08,238.64,238.63,0.68]
[1758341878914,1e-08,238.64,238.63,4.87058793]
[1758341879610,31.20000001,238.64,238.63,4.87058793]
[1758341880092,33.16997631,238.64,238.63,36.81058793]
[1758341880298,33.16997631,238.64,238.63,36.13058793]
[1758341882801,33.16997631,238.64,238.63,36.85058793]
[1758341883400,33.16997631,238.64,238.63,36.13058793]
[1758341883587,2.63997631,238.64,238.63,31.94]
[1758341884188,0.14216157,238.63,238.57,4.19149182]
[1758341884399,1.9699763,238.59,238.58,31.92]
[1758341886212,1.9699763,238.59,238.58,36.11146617]
[1758341889706,1.9699763,238.59,238.58,36.83146617]
[1758341891419,1.9699763,238.59,238.58,36.11146617]
[1758341891719,1.9699763,238.59,238.58,31.92]
[1758341891892,2.6399763,238.59,238.58,31.92]
[1758341892096,15.2415767,238.59,238.58,31.92]
[1758341893816,14.5715767,238.59,238.58,31.92]
[1758341895916,15.2415767,238.59,238.53,0.72]
[1758341896121,1.9699763,238.55,238.54,31.94]
[1758341896421,31.2,238.61,238.54,31.94]
[1758341896422,1.9699763,238.56,238.54,31.94]
[1758341896594,14.57369439,238.56,238.54,31.94]
[1758341896796,14.57369439,238.56,238.54,32.66]
[1758341898012,14.57369439,238.56,238.54,31.94]
[1758341898222,15.24369439,238.56,238.54,31.94]
[1758341898420,2.6399763,238.56,238.54,31.94]
[1758341898612,14.5736944,238.55,238.54,31.94]
[1758341898811,1.9699763,238.55,238.54,31.94]
[1758341899325,1.9699763,238.55,238.54,32.66]
[1758341899830,1.9699763,238.55,238.54,31.94]
[1758341900194,14.57369439,238.55,238.54,31.94]
[1758341901018,1.9699763,238.55,238.54,32.66]
[1758341904919,14.57369439,238.56,238.54,36.85216902]
[1758341908323,14.57369439,238.56,238.54,36.13216902]
[1758341908622,14.57369439,238.56,238.54,36.80216902]
[1758341909607,14.57369439,238.56,238.54,32.61]
[1758341910013,1.9699763,238.55,238.54,32.61]
[1758341910823,12.60371809,238.56,238.54,32.61]
[1758341911026,1.9699763,238.55,238.54,31.94]
[1758341911838,1.9699763,238.55,238.54,32.61]
[1758341912332,1.9699763,238.55,238.54,36.80216902]
[1758341912511,12.60371809,238.56,238.54,36.80216902]
[1758341912512,1.9699763,238.56,238.54,36.80216902]
[1758341912832,1.9699763,238.56,238.55,0.67]
[1758341912833,14.57369439,238.56,238.55,0.67]
[1758341914729,14.57369439,238.56,238.54,36.13216902]
[1758341914923,14.57369439,238.56,238.54,36.80216902]
[1758341916333,12.60371809,238.56,238.54,36.80216902]
[1758341916511,12.60371809,238.56,238.54,36.13216902]
[1758341916831,12.60371809,238.56,238.55,0.67]
[1758341917529,12.60371809,238.56,238.54,36.13216902]
[1758341917712,12.60371809,238.56,238.54,36.80216902]
[1758341919027,12.60371809,238.56,238.54,36.13216902]
[1758341919335,12.60371809,238.56,238.54,36.80216902]
[1758341922933,12.60371809,238.56,238.54,36.13216902]
[1758341923122,12.60371809,238.56,238.54,36.80216902]
[1758341924337,13.86483508,238.56,238.54,32.61]
[1758341925622,13.86483508,238.56,238.54,31.94]
[1758341925923,13.86483508,238.56,238.54,32.61]
[1758341926735,13.86483508,238.56,238.54,36.80216783]
[1758341927942,13.86483508,238.56,238.54,36.13216783]
[1758341928158,13.86483508,238.56,238.55,0.67]
[1758341928322,13.86483508,238.56,238.54,36.13216783]
[1758341928521,13.86483508,238.56,238.54,36.80216783]
[1758341929647,12.60371809,238.56,238.55,0.67]
[1758341929825,32.46111699,238.58,238.55,0.67]
[1758341930025,12.6037181,238.57,238.56,31.92]
[1758341930329,1.26111699,238.59,238.56,32.59]
[1758341930638,15.43050561,238.58,238.57,0.67]
[1758341930830,15.43050561,238.58,238.57,32.59]
[1758341932331,12.60265916,238.58,238.57,32.59]
[1758341933842,13.86377615,238.58,238.57,32.59]
[1758341936647,12.60265916,238.58,238.57,36.78164186]
[1758341936847,1.26111699,238.59,238.57,36.78164186]
[1758341937044,13.86324675,238.59,238.58,0.68]
[1758341937249,16.69291873,238.59,238.58,0.68]
[1758341937837,16.69291873,238.59,238.57,36.79164186]
[1758341938149,13.86324675,238.59,238.57,36.11164186]
[1758341938343,13.86324675,238.59,238.58,0.68]
[1758341938547,16.69315183,238.59,238.58,0.68]
[1758341938735,16.69315183,238.59,238.57,36.11164186]
[1758341938930,13.86324675,238.59,238.57,36.79164186]
[1758341940750,13.86324675,238.59,238.57,36.11164186]
[1758341940955,13.86324675,238.59,238.57,36.78164186]
[1758341941133,1.26111699,238.58,238.57,36.78164186]
[1758341943957,1.26111699,238.58,238.57,36.11164186]
[1758341945558,13.86324675,238.59,238.57,36.11164186]
[1758341946650,13.86324675,238.59,238.57,36.78164186]
[1758341946954,13.86324675,238.59,238.57,36.11164186]
[1758341947160,13.86324675,238.59,238.58,0.67]
[1758341947457,16.69352837,238.59,238.58,0.67]
[1758341947660,16.69352837,238.59,238.58,4.86146617]
[1758341947661,15.43241138,238.59,238.58,4.86146617]
[1758341947844,0.2,238.67,238.58,15.3401316]
[1758341947845,3.53792969,238.66,238.58,15.3401316]
[1758341948043,4.09113835,238.63,238.59,32.59]
[1758341948245,2.83002136,238.62,238.6,0.67]
[1758341948458,2.83002136,238.61,238.6,0.67]
[1758341948660,2.83002136,238.63,238.6,32.59]
[1758341948844,2.83002136,238.62,238.61,0.67]
[1758341949043,2.83002136,238.62,238.61,4.19093918]
[1758341949360,2.83002136,238.62,238.61,4.86093918]
[1758341950057,2.82916151,238.62,238.61,4.86093918]
[1758341950756,2.82916151,238.63,238.61,4.86093918]
[1758341950953,2.82916151,238.62,238.59,14.66951673]
[1758341951131,2.82916151,238.63,238.6,31.92]
[1758341951340,31.20000001,238.64,238.6,31.92]
[1758341951550,2.82838637,238.63,238.61,0.67]
[1758341951760,31.20000001,238.64,238.62,31.92]
[1758341952059,2.82838483,238.63,238.62,31.92]
[1758341952258,2.82838483,238.63,238.62,36.11076355]
[1758341952564,1e-08,238.64,238.62,36.78076355]
[1758341952748,1e-08,238.64,238.63,0.67]
[1758341954544,1e-08,238.64,238.63,4.86058793]
[1758341957257,1e-08,238.64,238.63,18.45618194]
[1758341957463,1e-08,238.64,238.63,50.37618194]
[1758341958563,1e-08,238.64,238.63,51.63729893]
[1758341960246,1e-08,238.64,238.63,50.37618194]
[1758341961261,1e-08,238.64,238.63,51.63729893]
[1758341966274,1e-08,238.64,238.63,50.37618194]
[1758341966568,1e-08,238.64,238.63,51.63729893]
[1758341970364,1e-08,238.64,238.63,50.37618194]
[1758341974078,1e-08,238.64,238.63,49.70618194]
[1758341974579,1e-08,238.64,238.63,50.38618194]
[1758341981779,0.70000001,238.64,238.63,4.19058793]
[1758341981955,0.70000001,238.64,238.63,31.9]
[1758341982969,0.70000001,238.64,238.63,36.09058793]
[1758341983566,1e-08,238.64,238.63,36.09058793]
[1758341986778,2.66852786,238.64,238.59,4.19129049]
[1758341986979,0.7,238.63,238.6,45.49559401]
[1758341987183,0.7,238.62,238.61,31.9]
[1758341987476,0.7,238.62,238.57,4.19164186]
[1758341987665,33.16852785,238.63,238.57,4.19164186]
[1758341987666,2.66852785,238.61,238.57,4.19164186]
[1758341987866,2.66852785,238.6,238.58,31.9]
[1758341988065,0.7,238.59,238.58,31.9]
[1758341988802,2.66852785,238.59,238.58,31.9]
[1758341990800,2.66852785,238.59,238.56,2.19011107]
[1758341991097,1.96852785,238.58,238.57,31.9]
[1758341991395,2.66852785,238.58,238.57,31.9]
[1758341993015,33.86852785,238.58,238.56,2.19011107]
[1758341993307,35.39146617,238.58,238.57,31.9]
[1758341993519,16.79465477,238.58,238.57,31.9]
[1758341993683,17.49465477,238.58,238.57,31.9]
[1758341994495,19.46318262,238.58,238.57,31.9]
[1758341994886,15.27171645,238.58,238.57,31.9]
[1758341997690,46.47171645,238.58,238.57,31.9]
[1758342001193,0.14216157,238.65,238.57,36.77164186]
[1758342001404,1.96852785,238.59,238.58,0.68]
[1758342001589,1.96852785,238.59,238.58,32.6]
[1758342001991,12.60265917,238.6,238.58,31.92]
[1758342002198,1.96852785,238.61,238.59,0.68]
[1758342002400,1.96852785,238.61,238.6,31.92]
[1758342002896,45.76959894,238.62,238.6,32.6]
[1758342003411,33.16852785,238.62,238.6,32.6]
[1758342003600,31.2,238.61,238.6,32.6]
[1758342004115,33.16852785,238.61,238.6,32.6]
[1758342005008,33.16852785,238.61,238.6,31.92]
[1758342005213,1.96852785,238.61,238.6,31.92]
[1758342005897,33.16852785,238.61,238.6,31.92]
[1758342007915,1.96852785,238.61,238.6,31.92]
[1758342008597,0.71,238.63,238.6,31.92]
[1758342008796,1.96852785,238.61,238.6,31.92]
[1758342009017,33.16852785,238.61,238.6,31.92]
[1758342011018,33.16852785,238.61,238.59,4.19125136]
[1758342011327,33.16852785,238.61,238.6,31.92]
[1758342011904,33.87852785,238.61,238.6,31.92]
[1758342012604,33.16852785,238.61,238.6,31.92]
[1758342013013,1.96852785,238.61,238.6,31.92]
[1758342013342,1.96852785,238.61,238.58,4.87141437]
[1758342013636,12.60107109,238.62,238.59,31.92]
[1758342013813,13.31107109,238.62,238.59,31.92]
[1758342014213,13.31107109,238.62,238.6,31.92]
[1758342014828,1.96852785,238.61,238.6,31.92]
[1758342015025,31.2,238.58,238.56,2.19011107]
[1758342015234,2.67852785,238.57,238.53,62.8]
[1758342015440,31.2,238.58,238.54,31.92]
[1758342015441,0.71,238.56,238.54,31.92]
[1758342015642,31.2,238.6,238.54,31.92]
[1758342015935,31.2,238.6,238.55,14.27559401]
[1758342016140,0.71000001,238.64,238.56,32.6]
[1758342016631,1.96852785,238.6,238.57,0.68]
[1758342016823,1.96852785,238.6,238.58,36.17130218]
[1758342017024,33.16852785,238.6,238.59,0.68]
[1758342017820,1e-08,238.64,238.59,0.68]
[1758342018018,1.96852785,238.63,238.6,31.98]
[1758342018320,1.96852785,238.63,238.61,0.68]
[1758342018522,1.96852785,238.63,238.62,32.66]
[1758342020035,2.67852785,238.63,238.62,31.98]
[1758342020233,46.47854045,238.63,238.62,31.98]
[1758342020544,45.76854045,238.63,238.62,31.98]
[1758342020723,33.16852785,238.63,238.62,31.98]
[1758342021235,33.16852785,238.63,238.62,32.66]
[1758342021410,33.16852785,238.63,238.62,31.98]
[1758342028233,35.99177977,238.63,238.62,31.98]
[1758342032651,36.71177977,238.63,238.62,31.98]
[1758342033329,53.50343879,238.63,238.62,31.96]
[1758342042154,52.78343879,238.63,238.62,31.96]
[1758342042528,52.78343879,238.63,238.59,0.71]
[1758342042729,33.16852785,238.6,238.56,4.19181757]
[1758342042951,1.96852785,238.59,238.56,4.19181757]
[1758342043258,1.96852785,238.59,238.57,32.65]
[1758342043460,1.96852785,238.59,238.58,0.71]
[1758342043831,1.2608437,238.59,238.58,0.71]
[1758342044443,4.0901366,238.59,238.58,0.71]
[1758342047356,1.2608437,238.59,238.58,0.71]
[1758342052862,4.09052201,238.59,238.58,0.71]
[1758342053159,1.2608437,238.59,238.58,0.71]
[1758342056879,1.2608437,238.59,238.57,36.13151053]
[1758342057040,4.77080247,238.58,238.57,31.94]
[1758342057564,4.09080247,238.58,238.57,31.94]
[1758342059071,31.2,238.56,238.54,2.1903941]
[1758342059255,31.2,238.56,238.55,31.94]
[1758342059451,32.4608437,238.56,238.55,31.94]
[1758342062559,32.4608437,238.56,238.55,32.65]
[1758342065674,33.1608437,238.56,238.55,31.94]
[1758342065970,32.4608437,238.56,238.55,31.94]
[1758342066671,4.78883082,238.56,238.55,31.92]
[1758342066853,8.98066088,238.56,238.55,31.92]
[1758342067053,21.58543809,238.56,238.55,31.92]
[1758342068973,20.32459439,238.56,238.55,31.92]
[1758342069166,16.69360803,238.56,238.55,31.92]
[1758342069372,21.5854256,238.56,238.55,31.92]
[1758342073076,31.2,238.53,238.51,0.71]
[1758342073286,31.2,238.53,238.52,31.92]
[1758342074564,32.4608437,238.53,238.52,32.63]
[1758342074885,37.35318847,238.53,238.52,31.92]
[1758342075173,52.78476954,238.53,238.52,31.92]
[1758342075978,52.78476954,238.53,238.49,31.94]
[1758342076168,1.2608437,238.5,238.49,31.94]
[1758342081989,13.86826947,238.5,238.49,31.94]
[1758342082281,13.86826947,238.5,238.49,32.65]
[1758342083083,13.86826947,238.5,238.49,31.94]
[1758342083987,13.86826947,238.5,238.49,32.65]
[1758342093812,12.60742577,238.5,238.49,36.84304792]
[1758342094009,1.2608437,238.54,238.49,36.84304792]
[1758342094207,1.2608437,238.54,238.5,0.71]
[1758342094496,1.2608437,238.54,238.51,31.94]
[1758342094700,1.2608437,238.54,238.52,0.71]
[1758342094901,1.2608437,238.54,238.53,32.65]
[1758342095105,1.2608437,238.54,238.53,36.84234477]
[1758342097003,1.9608437,238.54,238.53,31.94]
[1758342097499,17.38893517,238.54,238.53,31.94]
[1758342098002,17.38893517,238.54,238.5,0.71]
[1758342098207,1.2608437,238.51,238.5,0.71]
[1758342098505,1.2608437,238.51,238.5,32.65]
[1758342099003,1.2608437,238.51,238.5,36.84287211]
[1758342099986,1.2608437,238.52,238.5,36.84287211]
[1758342100307,1.2608437,238.53,238.51,0.71]
[1758342100494,1.2608437,238.53,238.52,32.65]
[1758342101407,1.2608437,238.53,238.52,36.84252054]
[1758342102605,1.2608437,238.53,238.52,32.65]
[1758342102909,1.2608437,238.53,238.52,31.94]
[1758342103407,1.2608437,238.53,238.52,32.65]
[1758342103813,1.97110434,238.53,238.52,32.65]
[1758342105312,1.97110434,238.53,238.52,31.94]
[1758342108711,1.97110434,238.53,238.52,32.65]
[1758342109317,1.97110434,238.53,238.52,36.84252054]
[1758342116122,1.97110434,238.53,238.52,36.13252054]
[1758342116824,1.97110434,238.53,238.52,31.94]
[1758342118235,1.97110434,238.53,238.52,36.82252054]
[1758342127912,4.79911321,238.53,238.52,36.82252054]
[1758342130530,4.79911321,238.53,238.52,36.13252054]
[1758342133514,4.79911321,238.53,238.52,36.84252054]
[1758342135855,2.82800887,238.53,238.52,36.84252054]
[1758342136132,3.53455642,238.59,238.52,36.84252054]
[1758342136133,1.97110434,238.57,238.52,50.43811455]
[1758342136332,2.82934213,238.56,238.53,0.71]
[1758342136537,2.82934213,238.55,238.54,31.92]
[1758342136723,2.82934213,238.55,238.54,32.63]
[1758342137112,3.53455642,238.62,238.54,47.30259159]
[1758342137311,1.97110434,238.6,238.55,0.71]
[1758342137531,2.82961466,238.59,238.56,31.92]
[1758342137732,2.82961466,238.58,238.57,32.63]
[1758342137932,1.97110435,238.64,238.58,13.59559401]
[1758342138257,2.82934701,238.63,238.59,34.62110434]
[1758342138533,1e-08,238.64,238.59,34.62110434]
[1758342138534,2.82934701,238.62,238.6,46.24559401]
[1758342138731,1e-08,238.64,238.61,0.71]
[1758342138921,2.82786183,238.63,238.62,31.94]
[1758342139115,2.82786183,238.63,238.62,36.84076355]
[1758342139441,1e-08,238.64,238.62,36.84076355]
[1758342139740,1e-08,238.64,238.63,0.71]
[1758342139945,2.82564399,238.64,238.63,0.71]
[1758342140316,1.97110435,238.64,238.62,36.13076355]
[1758342140618,4.79532221,238.64,238.62,36.84076355]
[1758342140823,1.97110435,238.64,238.63,0.71]
[1758342141051,4.79532221,238.64,238.63,0.71]
[1758342141226,1.97110435,238.64,238.63,4.90058793]
[1758342147930,1.97110435,238.64,238.63,4.19058793]
[1758342148245,1.97110435,238.64,238.63,4.89058793]
[1758342153530,1e-08,238.64,238.63,4.89058793]
[1758342154250,1e-08,238.64,238.63,18.48618194]
[1758342159438,1e-08,238.64,238.63,20.74160942]
[1758342160435,1e-08,238.64,238.63,18.77050508]
[1758342164457,1e-08,238.64,238.63,50.67050508]
[1758342165453,1e-08,238.64,238.63,52.64160942]
[1758342165950,1e-08,238.64,238.63,51.9302816]
[1758342172665,1e-08,238.64,238.63,50.67050508]
[1758342172844,1e-08,238.64,238.63,51.9302816]
[1758342176764,1e-08,238.64,238.63,51.2302816]
[1758342179077,1e-08,238.64,238.63,51.9402816]
[1758342182064,1e-08,238.64,238.63,51.2302816]
[1758342186976,1e-08,238.64,238.63,51.9302816]
[1758342188575,1e-08,238.64,238.63,114.7302816]
[1758342188965,1e-08,238.64,238.63,82.8302816]
[1758342189168,1e-08,238.64,238.63,114.7302816]
[1758342191877,1e-08,238.64,238.63,82.8302816]
[1758342192074,1e-08,238.64,238.63,114.7302816]
[1758342192256,1e-08,238.64,238.63,82.8302816]
[1758342192454,1e-08,238.64,238.63,114.7302816]
[1758342193563,1e-08,238.64,238.63,116.40950748]
[1758342193763,1e-08,238.64,238.63,114.7302816]
[1758342194362,1e-08,238.64,238.63,82.8302816]
[1758342194578,1e-08,238.64,238.63,114.7302816]
[1758342194788,1e-08,238.64,238.63,81.57050508]
[1758342194994,1e-08,238.64,238.63,113.88812003]
[1758342195286,1e-08,238.64,238.63,114.0302816]
[1758342196263,1e-08,238.64,238.63,114.7302816]
[1758342196960,1e-08,238.64,238.63,82.1302816]
[1758342197173,1e-08,238.64,238.63,114.0302816]
[1758342197382,1e-08,238.64,238.63,112.77050508]
[1758342197561,1e-08,238.64,238.63,114.0302816]
[1758342199379,1e-08,238.64,238.63,51.2302816]
[1758342201172,1e-08,238.64,238.63,19.3302816]
[1758342201369,1e-08,238.64,238.63,51.2302816]
[1758342201778,1e-08,238.64,238.63,19.3302816]
[1758342201984,0.72000001,238.64,238.63,49.68618194]
[1758342202187,0.72000001,238.64,238.63,17.78618194]
[1758342202378,0.72000001,238.64,238.63,49.68618194]
[1758342203090,1e-08,238.64,238.63,49.68618194]
[1758342205565,0.72000001,238.64,238.63,49.68618194]
[1758342205766,0.72000001,238.64,238.63,17.78618194]
[1758342205972,1.97977653,238.64,238.59,66.99115978]
[1758342206273,0.66,238.63,238.6,45.49559401]
[1758342206584,0.66,238.62,238.6,45.49559401]
[1758342206975,0.66,238.62,238.6,49.68668623]
[1758342207176,0.66,238.61,238.6,49.68668623]
[1758342208901,0.66,238.61,238.59,13.59559401]
[1758342209080,0.66,238.6,238.57,2.18927713]
[1758342209275,0.66,238.59,238.58,45.49559401]
[1758342211497,10.79819358,238.61,238.58,49.68706018]
[1758342211792,0.66,238.6,238.58,49.68706018]
[1758342213801,0.66,238.6,238.58,45.49559401]
[1758342214387,0.66,238.6,238.58,49.68700919]
[1758342214588,1.91977652,238.61,238.58,49.68700919]
[1758342214883,1.25977652,238.61,238.58,49.68700919]
[1758342215087,0.66,238.6,238.58,49.68700919]
[1758342216197,1.91977652,238.61,238.58,49.68700919]
[1758342219293,0.66,238.61,238.58,49.68700919]
[1758342219494,14.51978912,238.62,238.58,50.34700919]
[1758342222609,14.51978912,238.62,238.59,0.66]
[1758342222792,14.51978912,238.62,238.6,31.9]
[1758342223811,13.85978912,238.62,238.6,31.9]
[1758342224612,14.51978912,238.62,238.6,31.9]
[1758342226292,14.51978912,238.62,238.6,36.09110802]
[1758342227216,14.51978912,238.62,238.6,31.9]
[1758342227506,1.25977652,238.61,238.6,31.9]
[1758342227819,1.96959043,238.61,238.6,31.9]
[1758342230921,15.22960303,238.62,238.6,31.9]
[1758342234624,14.56960303,238.62,238.6,36.75110012]
[1758342236908,14.56960303,238.62,238.61,0.7]
[1758342237217,14.56960303,238.62,238.61,32.6]
[1758342238721,14.56960303,238.62,238.61,31.9]
[1758342238906,12.6000126,238.62,238.61,31.9]
[1758342241926,14.56960303,238.62,238.61,31.9]
[1758342242611,14.56960303,238.62,238.61,36.09093918]
[1758342242918,12.6000126,238.62,238.61,36.09093918]
[1758342243117,14.56960303,238.62,238.61,36.09093918]
[1758342246628,12.6000126,238.62,238.61,36.75093918]
[1758342247327,1e-08,238.64,238.62,13.59559401]
[1758342247515,1e-08,238.64,238.63,31.9]
[1758342247824,1e-08,238.64,238.63,32.56]
[1758342248123,1e-08,238.64,238.63,46.15559401]
[1758342248630,1e-08,238.64,238.63,50.34618194]
[1758342251817,1e-08,238.64,238.61,4.19093918]
[1758342252023,1e-08,238.64,238.62,46.15559401]
[1758342252728,1e-08,238.64,238.62,45.49559401]
[1758342253103,1e-08,238.64,238.63,4.19058793]
[1758342255240,1e-08,238.64,238.63,4.85058793]
[1758342255739,1e-08,238.64,238.63,4.19058793]